bitfinex/quotes_BTCUSD_20240719
["timestamp","ask_amount","ask_price","bid_price","bid_amount"]
[1721429280311,0.1,66948.0,66943.0,0.18444]
[1721429280513,0.023,66947.0,66943.0,0.18444]
[1721429281048,0.023,66947.0,66944.0,0.13444]
[1721429281827,0.037,66947.0,66944.0,0.13444]
[1721429282025,0.023,66947.0,66944.0,0.13444]
[1721429282225,0.023,66947.0,66943.0,0.184442]
[1721429282401,0.037,66947.0,66943.0,0.184442]
[1721429282607,0.037,66947.0,66944.0,0.13444]
[1721429283405,0.049,66947.0,66944.0,0.13444]
[1721429283819,0.037,66947.0,66944.0,0.13444]
[1721429284408,0.03484,66947.0,66944.0,0.13444]
[1721429284898,0.04884,66947.0,66944.0,0.13444]
[1721429285272,0.04884,66947.0,66942.0,0.192997]
[1721429285273,0.134437,66946.0,66942.0,0.192997]
[1721429285473,0.134442,66943.0,66942.0,0.049297]
[1721429285683,0.257442,66943.0,66942.0,0.049297]
[1721429285855,0.526327,66943.0,66942.0,0.049297]
[1721429286268,1.02465044,66943.0,66942.0,0.049297]
[1721429286633,0.94959374,66943.0,66942.0,0.049297]
[1721429286836,0.94939374,66943.0,66942.0,0.049297]
[1721429287750,0.95639374,66943.0,66942.0,0.049297]
[1721429288123,0.96539374,66943.0,66942.0,0.049297]
[1721429290189,1.23427874,66943.0,66942.0,0.049297]
[1721429292407,1.37327874,66943.0,66942.0,0.049297]
[1721429292818,1.47675902,66943.0,66942.0,0.049297]
[1721429293223,1.46975902,66943.0,66942.0,0.049297]
[1721429293688,1.37127874,66943.0,66942.0,0.049297]
[1721429293885,1.739872,66943.0,66942.0,0.049297]
[1721429294036,1.824872,66943.0,66942.0,0.049297]
[1721429294244,1.83385111,66943.0,66942.0,0.049297]
[1721429294870,1.69485111,66943.0,66942.0,0.049297]
[1721429295074,1.43996611,66943.0,66942.0,0.049297]
[1721429296346,1.59173672,66943.0,66942.0,0.049297]
[1721429296922,1.59167234,66943.0,66942.0,0.049297]
[1721429297127,1.65377234,66943.0,66942.0,0.049297]
[1721429297772,1.73067234,66943.0,66942.0,0.049297]
[1721429298098,1.63492146,66943.0,66942.0,0.049297]
[1721429299359,1.57282146,66943.0,66942.0,0.049297]
[1721429300119,1.57226252,66943.0,66942.0,0.049297]
[1721429300609,1.41036252,66943.0,66942.0,0.049297]
[1721429303339,1.41075728,66943.0,66942.0,0.049297]
[1721429304355,1.14187228,66943.0,66942.0,0.049297]
[1721429305849,0.31547854,66943.0,66942.0,0.049297]
[1721429306054,0.028,66943.0,66942.0,0.64293]
[1721429306256,0.028,66943.0,66942.0,0.374041]
[1721429306475,0.028,66943.0,66942.0,0.37497098]
[1721429306899,0.014,66943.0,66942.0,0.37497098]
[1721429307221,0.024,66943.0,66942.0,0.37497098]
[1721429307650,0.1,66946.0,66943.0,0.134442]
[1721429307872,0.1,66946.0,66944.0,0.143094]
[1721429308071,0.023,66945.0,66944.0,0.27845438]
[1721429308272,0.023,66945.0,66944.0,0.27566038]
[1721429308682,0.0095934,66947.0,66944.0,0.27566038]
[1721429308834,0.023,66946.0,66945.0,0.002794]
[1721429309040,0.036,66946.0,66945.0,0.00370958]
[1721429309446,0.023,66946.0,66945.0,0.00370958]
[1721429310463,0.033,66946.0,66945.0,0.00370958]
[1721429311551,0.046,66946.0,66945.0,0.00370958]
[1721429314087,0.146,66946.0,66945.0,0.00091558]
[1721429314290,0.19058063,66946.0,66945.0,0.00091558]
[1721429316077,0.146,66946.0,66945.0,0.00091558]
[1721429316278,0.146,66946.0,66945.0,0.00370958]
[1721429316480,0.280436,66946.0,66945.0,0.00091558]
[1721429316948,0.762549,66946.0,66945.0,0.00091558]
[1721429317122,1.89140718,66946.0,66945.0,0.00091558]
[1721429317326,0.722202,66944.0,66943.0,0.000924]
[1721429317552,1.35448249,66944.0,66943.0,0.000924]
[1721429318523,1.41177949,66944.0,66943.0,0.000924]
[1721429318721,1.42177949,66944.0,66943.0,0.000924]
[1721429319362,1.42375019,66944.0,66943.0,0.000924]
[1721429322508,1.34171918,66944.0,66943.0,0.000924]
[1721429322723,1.42362285,66944.0,66943.0,0.000924]
[1721429324131,1.50862285,66944.0,66943.0,0.000924]
[1721429325149,1.96690385,66944.0,66943.0,0.000924]
[1721429325366,1.96690385,66944.0,66942.0,0.049297]
[1721429325367,0.991097,66943.0,66942.0,0.049297]
[1721429325549,1.84185258,66943.0,66942.0,0.049297]
[1721429325746,1.8418824,66943.0,66942.0,0.049297]
[1721429326449,1.88666311,66943.0,66942.0,0.049297]
[1721429326666,1.8418824,66943.0,66942.0,0.049297]
[1721429328331,1.8698824,66943.0,66942.0,0.04912641]
[1721429328519,2.02423197,66943.0,66942.0,0.04912641]
[1721429328722,1.8698824,66943.0,66942.0,0.04912641]
[1721429329159,1.8696733,66943.0,66942.0,0.04912641]
[1721429330713,1.8696733,66943.0,66938.0,0.009207]
[1721429330714,1.260054,66939.0,66938.0,0.009207]
[1721429330916,0.481081,66934.0,66933.0,0.032207]
[1721429331124,0.134468,66930.0,66929.0,0.05]
[1721429331333,1.06440743,66930.0,66929.0,0.05]
[1721429331544,1.276296,66920.0,66913.0,0.05]
[1721429331737,0.134509,66910.0,66897.0,0.05]
[1721429331939,0.5381,66902.0,66897.0,0.05]
[1721429332194,1.33333244,66902.0,66897.0,0.05]
[1721429332479,1.4682059,66902.0,66897.0,0.05]
[1721429332697,1.555889,66902.0,66897.0,0.05]
[1721429333311,0.805089,66902.0,66897.0,0.05]
[1721429333517,0.68095674,66902.0,66897.0,0.05]
[1721429333923,0.68990023,66902.0,66897.0,0.05]
[1721429334328,0.97295023,66902.0,66897.0,0.05]
[1721429334574,0.68990023,66902.0,66897.0,0.05]
[1721429334690,0.91660023,66902.0,66897.0,0.05]
[1721429334886,0.66155023,66902.0,66897.0,0.05]
[1721429335117,0.15994349,66902.0,66901.0,0.1102]
[1721429335362,0.14594349,66902.0,66901.0,0.1201189]
[1721429335771,0.014,66902.0,66901.0,0.60394179]
[1721429335971,0.014,66902.0,66901.0,1.79529579]
[1721429336224,0.014,66902.0,66901.0,2.06434979]
[1721429336394,0.028,66902.0,66901.0,2.06434979]
[1721429337172,0.014,66902.0,66901.0,2.06434979]
[1721429337369,0.014,66902.0,66901.0,1.1941079]
[1721429337590,0.002794,66913.0,66909.0,0.18451]
[1721429337803,0.002794,66913.0,66910.0,0.134508]
[1721429337999,0.002794,66913.0,66911.0,0.134506]
[1721429338991,0.002794,66913.0,66911.0,0.14105002]
[1721429338992,0.025794,66913.0,66911.0,0.14105002]
[1721429339222,0.025794,66913.0,66911.0,0.00654402]
[1721429339421,0.032794,66913.0,66912.0,0.134505]
[1721429339766,0.03,66913.0,66912.0,0.134505]
[1721429340526,0.002794,66912.0,66911.0,0.134506]
[1721429340775,0.025794,66912.0,66911.0,0.13774179]
[1721429341005,0.023,66912.0,66911.0,0.13774179]
[1721429341181,0.84990674,66912.0,66911.0,0.00323579]
[1721429341319,0.94990674,66912.0,66911.0,0.00323579]
[1721429341514,0.94990674,66912.0,66878.0,0.05]
[1721429341515,0.816265,66898.0,66878.0,0.05]
[1721429341726,0.816265,66898.0,66868.0,0.25]
[1721429341727,0.05,66852.0,66851.0,0.46304871]
[1721429341967,0.05,66856.0,66851.0,0.00299374]
[1721429342139,0.002794,66855.0,66854.0,0.403864]
[1721429342355,0.002794,66856.0,66855.0,0.134619]
[1721429342529,0.002794,66856.0,66855.0,0.942336]
[1721429342911,0.05,66863.0,66862.0,0.403816]
[1721429343094,0.05,66863.0,66862.0,0.134605]
[1721429343304,0.17417932,66863.0,66862.0,0.376816]
[1721429343510,0.17417932,66863.0,66862.0,0.646027]
[1721429343923,0.12418015,66863.0,66862.0,0.915238]
[1721429344126,0.17418015,66863.0,66862.0,0.916238]
[1721429344361,0.05,66863.0,66862.0,0.916238]
[1721429344769,0.053,66863.0,66862.0,0.916238]
[1721429344901,0.05,66863.0,66862.0,1.1448618]
[1721429345306,0.053,66863.0,66862.0,1.1438618]
[1721429345534,0.05,66863.0,66862.0,1.052238]
[1721429345941,0.053,66863.0,66862.0,1.052238]
[1721429346349,0.054,66863.0,66862.0,1.052238]
[1721429346739,0.054,66863.0,66862.0,0.513816]
[1721429346928,0.053,66863.0,66862.0,0.783027]
[1721429347126,0.05,66863.0,66862.0,0.783027]
[1721429347502,0.05,66865.0,66864.0,0.94221]
[1721429348083,0.05,66867.0,66866.0,0.672987]
[1721429348309,0.05,66867.0,66866.0,0.134597]
[1721429348483,0.05,66869.0,66868.0,0.40378]
[1721429348686,0.005,66865.0,66864.0,0.403801]
[1721429348884,0.05,66870.0,66864.0,0.403801]
[1721429348885,0.05,66870.0,66864.0,0.43758081]
[1721429349090,0.04931797,66876.0,66872.0,0.455255]
[1721429349091,0.05,66873.0,66872.0,0.455255]
[1721429349309,0.04931797,66876.0,66872.0,0.455255]
[1721429349310,0.04931797,66876.0,66875.0,0.134579]
[1721429349466,0.05,66879.0,66878.0,0.134573]
[1721429349914,0.05,66879.0,66878.0,0.942011]
[1721429350245,0.05,66886.0,66878.0,0.269146]
[1721429350415,0.05,66886.0,66885.0,0.269118]
[1721429350629,0.05,66886.0,66885.0,0.672795]
[1721429351810,0.052,66886.0,66885.0,0.672795]
[1721429352015,0.05,66880.0,66879.0,0.71868385]
[1721429352199,0.05,66880.0,66879.0,0.672855]
[1721429353326,0.051,66880.0,66879.0,0.673855]
[1721429353714,0.05,66880.0,66879.0,0.672855]
[1721429353920,0.05,66884.0,66883.0,0.134563]
[1721429354123,0.05,66884.0,66883.0,0.403689]
[1721429354344,0.05,66884.0,66883.0,0.672815]
[1721429354903,0.05,66884.0,66883.0,0.403689]
[1721429355490,0.054,66884.0,66883.0,0.403689]
[1721429356690,0.056,66884.0,66883.0,0.403689]
[1721429357119,0.052,66884.0,66883.0,0.403689]
[1721429357906,0.056,66884.0,66883.0,0.403689]
[1721429359589,0.056,66884.0,66883.0,0.4776213]
[1721429359996,0.056,66884.0,66883.0,0.7467473]
[1721429360197,0.056,66884.0,66883.0,0.672815]
[1721429360610,0.056,66884.0,66883.0,1.372815]
[1721429362851,0.056,66884.0,66883.0,1.372115]
[1721429366568,0.056,66884.0,66883.0,1.102989]
[1721429366885,0.056,66884.0,66883.0,1.372115]
[1721429368724,0.056,66884.0,66883.0,1.102989]
[1721429376965,0.056,66884.0,66883.0,1.372115]
[1721429377337,0.056,66884.0,66883.0,1.102989]
[1721429377740,0.056,66884.0,66883.0,1.372115]
[1721429378387,0.056,66884.0,66883.0,1.102989]
[1721429378588,0.056,66884.0,66883.0,1.372115]
[1721429378723,0.18013656,66884.0,66883.0,1.372115]
[1721429379172,0.1801364,66884.0,66883.0,1.372115]
[1721429379579,0.1801364,66884.0,66883.0,1.52646457]
[1721429379979,0.1801364,66884.0,66883.0,1.372115]
[1721429380387,0.1801364,66884.0,66883.0,1.373039]
[1721429380843,0.19010569,66884.0,66883.0,1.373039]
[1721429382424,0.06596929,66884.0,66883.0,1.373039]
[1721429383242,0.00684,66884.0,66883.0,1.373039]
[1721429383442,0.00684,66884.0,66883.0,2.07585064]
[1721429383868,0.00684,66884.0,66883.0,2.12782057]
[1721429384252,0.00484,66884.0,66883.0,2.12782057]
[1721429384450,0.00484,66884.0,66883.0,2.6374546]
[1721429384653,0.00084,66884.0,66883.0,2.6374546]
[1721429385066,0.00184,66884.0,66883.0,2.42474469]
[1721429385265,0.00084,66884.0,66883.0,2.42474469]
[1721429385495,0.00084,66884.0,66883.0,2.42474342]
[1721429385736,0.00184,66884.0,66883.0,2.42474342]
[1721429386980,0.00084,66884.0,66883.0,2.42474342]
[1721429387407,0.00084,66884.0,66883.0,2.69386942]
[1721429387408,0.00284,66884.0,66883.0,2.69386942]
[1721429387573,0.00284,66884.0,66883.0,2.90656942]
[1721429387767,0.00184,66884.0,66883.0,2.90656942]
[1721429388221,0.00284,66884.0,66883.0,2.90656942]
[1721429388380,0.00284,66884.0,66883.0,3.06168459]
[1721429388579,0.00284,66884.0,66883.0,3.06206862]
[1721429388983,0.00184,66884.0,66883.0,3.06206862]
[1721429389537,0.00184,66884.0,66883.0,2.90695345]
[1721429389747,0.00184,66884.0,66883.0,3.06206325]
[1721429390694,0.00184,66884.0,66883.0,3.07506325]
[1721429390899,0.00084,66884.0,66883.0,3.06206325]
[1721429391120,0.00184,66884.0,66883.0,3.06206325]
[1721429391321,0.00184,66884.0,66883.0,2.91995345]
[1721429391322,0.00284,66884.0,66883.0,2.91995345]
[1721429391522,0.00184,66884.0,66883.0,2.91995345]
[1721429391727,0.00184,66884.0,66883.0,2.30087586]
[1721429391934,0.00284,66884.0,66883.0,2.22397586]
[1721429392329,0.00284,66884.0,66883.0,0.686039]
[1721429393339,0.00184,66884.0,66883.0,0.686039]
[1721429393490,0.00084,66884.0,66883.0,0.673039]
[1721429393669,0.00184,66884.0,66883.0,1.376039]
[1721429393869,0.00184,66884.0,66883.0,1.93715064]
[1721429394073,0.00084,66884.0,66883.0,1.93415064]
[1721429394275,0.00184,66884.0,66883.0,1.93415064]
[1721429394464,0.00184,66884.0,66883.0,1.93615064]
[1721429394663,0.00184,66884.0,66883.0,1.93415064]
[1721429394944,0.00084,66884.0,66883.0,1.93415064]
[1721429395097,0.00084,66884.0,66883.0,1.93615064]
[1721429395283,0.00184,66884.0,66883.0,1.93615064]
[1721429395475,0.00184,66884.0,66883.0,1.93415064]
[1721429397229,0.00284,66884.0,66883.0,1.380039]
[1721429400749,0.00284,66884.0,66883.0,1.649165]
[1721429401350,0.00284,66884.0,66883.0,1.380039]
[1721429402554,0.00284,66884.0,66883.0,1.80354674]
[1721429402750,0.00284,66884.0,66883.0,1.95789631]
[1721429408722,0.00284,66884.0,66883.0,2.37182231]
[1721429409558,0.00284,66884.0,66883.0,2.37172231]
[1721429409762,0.00184,66884.0,66883.0,2.37172231]
[1721429409961,0.00084,66884.0,66883.0,2.36472231]
[1721429410176,0.00284,66884.0,66883.0,2.37672231]
[1721429410404,0.00184,66884.0,66883.0,2.36472231]
[1721429410580,0.00084,66884.0,66883.0,2.36472231]
[1721429410782,0.00284,66884.0,66883.0,2.37672231]
[1721429410989,0.00284,66884.0,66883.0,2.36472231]
[1721429411510,0.00384,66884.0,66883.0,2.37672231]
[1721429412215,0.00284,66884.0,66883.0,2.37672231]
[1721429412417,0.00384,66884.0,66883.0,2.39072231]
[1721429420291,0.00384,66884.0,66883.0,2.65984831]
[1721429420637,0.00384,66884.0,66883.0,2.92897431]
[1721429420839,0.00384,66884.0,66883.0,2.97247026]
[1721429421154,0.00384,66884.0,66883.0,3.01718549]
[1721429421350,0.00384,66884.0,66883.0,2.97247026]
[1721429421599,0.00384,66884.0,66883.0,3.01718437]
[1721429421759,0.00284,66884.0,66883.0,3.00318437]
[1721429421921,0.00184,66884.0,66883.0,3.00018437]
[1721429422251,0.00284,66884.0,66883.0,3.01418437]
[1721429422451,0.00284,66884.0,66883.0,3.00018437]
[1721429422842,0.00384,66884.0,66883.0,3.01418302]
[1721429423446,0.00284,66884.0,66883.0,3.00518302]
[1721429424646,0.00284,66884.0,66883.0,3.27430902]
[1721429424846,0.00284,66884.0,66883.0,3.00518302]
[1721429425530,0.00384,66884.0,66883.0,2.97445581]
[1721429428437,0.00384,66884.0,66883.0,3.04152933]
[1721429428821,0.00384,66884.0,66883.0,2.97445581]
[1721429429489,0.00384,66884.0,66883.0,3.31068042]
[1721429429819,0.00384,66884.0,66883.0,3.04155442]
[1721429432050,0.00384,66884.0,66883.0,2.97445581]
[1721429432256,0.00384,66884.0,66883.0,3.01918235]
[1721429432461,0.00384,66884.0,66883.0,2.59255635]
[1721429432662,0.00384,66884.0,66883.0,2.09357274]
[1721429432889,0.00384,66884.0,66883.0,1.79444674]
[1721429432890,0.14384,66884.0,66883.0,1.79444674]
[1721429433039,0.14384,66884.0,66883.0,0.431813]
[1721429433244,0.14384,66884.0,66883.0,0.700939]
[1721429433686,0.14084,66884.0,66883.0,0.672939]
[1721429434006,0.14084,66884.0,66883.0,0.686939]
[1721429434209,0.14084,66884.0,66883.0,0.672939]
[1721429434755,0.14084,66884.0,66883.0,0.674939]
[1721429435169,0.14184,66884.0,66883.0,0.688939]
[1721429435592,0.14084,66884.0,66883.0,0.674939]
[1721429435790,0.14084,66884.0,66883.0,0.679939]
[1721429436532,0.14084,66884.0,66883.0,0.7748464]
[1721429436750,0.14084,66884.0,66883.0,0.679939]
[1721429439068,0.14084,66884.0,66883.0,1.64344674]
[1721429439952,0.00084,66884.0,66883.0,1.95443708]
[1721429440151,0.00084,66884.0,66883.0,2.01543708]
[1721429440351,0.00084,66884.0,66883.0,2.16978665]
[1721429440913,0.00084,66884.0,66883.0,2.16778665]
[1721429441442,0.00084,66884.0,66883.0,2.18078665]
[1721429441807,0.00084,66884.0,66883.0,2.17578665]
[1721429442177,0.00084,66884.0,66883.0,2.45891265]
[1721429442402,0.00084,66884.0,66883.0,2.18978665]
[1721429442607,0.00084,66884.0,66883.0,2.16278665]
[1721429442843,0.00084,66884.0,66883.0,2.44591265]
[1721429443751,0.00084,66884.0,66883.0,2.19078665]
[1721429444085,0.00084,66884.0,66883.0,2.19072437]
[1721429444711,0.00084,66884.0,66883.0,2.19093462]
[1721429444917,0.00084,66884.0,66883.0,2.52210825]
[1721429447267,0.00084,66884.0,66883.0,2.36804831]
[1721429447475,0.00084,66884.0,66883.0,2.52189501]
[1721429447873,0.00084,66884.0,66883.0,2.25276901]
[1721429449398,0.00084,66884.0,66883.0,1.97537193]
[1721429449598,0.00084,66884.0,66883.0,1.70624593]
[1721429450671,0.00084,66884.0,66883.0,1.69168707]
[1721429450873,0.00084,66884.0,66883.0,1.26817933]
[1721429451492,0.00084,66884.0,66883.0,1.176939]
[1721429451902,0.00084,66884.0,66883.0,1.162939]
[1721429452053,0.00184,66884.0,66883.0,1.188939]
[1721429452263,0.00184,66884.0,66883.0,1.176939]
[1721429452607,0.00084,66884.0,66883.0,1.162839]
[1721429452810,0.00084,66884.0,66883.0,1.2805329]
[1721429453136,0.00184,66884.0,66883.0,1.176839]
[1721429453327,0.00184,66884.0,66883.0,1.188839]
[1721429454435,0.00184,66884.0,66883.0,1.34322074]
[1721429454632,0.00184,66884.0,66883.0,1.49757031]
[1721429457165,0.00184,66884.0,66883.0,1.34322074]
[1721429457425,0.00184,66884.0,66883.0,1.61234674]
[1721429457612,0.00184,66884.0,66883.0,1.34322074]
[1721429459502,0.00184,66884.0,66883.0,1.61234674]
[1721429459702,0.00184,66884.0,66883.0,1.34322074]
[1721429459960,0.00184,66884.0,66883.0,1.74666881]
[1721429460515,0.00184,66884.0,66883.0,1.84068789]
[1721429462613,0.00184,66884.0,66883.0,1.74666881]
[1721429462814,0.00184,66884.0,66883.0,1.84092103]
[1721429466023,0.00184,66884.0,66883.0,1.84115536]
[1721429469159,0.00184,66884.0,66883.0,1.84112307]
[1721429471955,0.00184,66884.0,66883.0,2.11024907]
[1721429472364,0.00184,66884.0,66883.0,2.11020646]
[1721429474010,0.00184,66884.0,66883.0,2.58008585]
[1721429474235,0.00184,66884.0,66883.0,3.22008585]
[1721429474436,0.00184,66884.0,66883.0,3.92785928]
[1721429474853,0.00184,66884.0,66883.0,4.01735883]
[1721429475061,0.00084,66884.0,66883.0,3.99135883]
[1721429475458,0.00184,66884.0,66883.0,4.0217457]
[1721429475866,0.00184,66884.0,66883.0,4.0077457]
[1721429476466,0.00184,66884.0,66883.0,4.4343717]
[1721429476834,0.00084,66884.0,66883.0,4.4203717]
[1721429477279,0.00084,66884.0,66883.0,4.4483717]
[1721429477491,0.14965398,66899.0,66898.0,1.273797]
[1721429477717,0.14965398,66899.0,66898.0,2.27967001]
[1721429477912,0.1,66899.0,66898.0,2.27967001]
[1721429478118,0.1,66899.0,66898.0,2.19457001]
[1721429478534,0.1,66899.0,66898.0,2.03517874]
[1721429478736,0.1,66899.0,66898.0,2.19358376]
[1721429478942,0.1,66899.0,66898.0,2.20158376]
[1721429481899,0.1,66899.0,66898.0,2.20221684]
[1721429485121,0.1,66899.0,66898.0,2.21401964]
[1721429487943,0.1,66899.0,66898.0,2.21389649]
[1721429488149,0.1,66899.0,66898.0,2.10540533]
[1721429488355,0.1,66899.0,66898.0,2.21389649]
[1721429490591,0.1,66899.0,66898.0,2.48296249]
[1721429490832,0.1,66899.0,66898.0,2.627801]
[1721429491238,0.1,66899.0,66898.0,2.358735]
[1721429491479,0.1,66899.0,66898.0,2.34854782]
[1721429492341,0.1,66899.0,66898.0,2.25774782]
[1721429492541,0.1,66899.0,66898.0,1.92664921]
[1721429493324,0.1,66899.0,66898.0,1.93664921]
[1721429493566,0.1,66899.0,66898.0,1.95064921]
[1721429493771,0.1,66899.0,66898.0,1.94064921]
[1721429493943,0.1,66899.0,66898.0,1.95264921]
[1721429494146,0.1,66899.0,66898.0,1.96564921]
[1721429494581,0.1,66899.0,66898.0,1.9664225]
[1721429497863,0.1,66899.0,66898.0,1.91757899]
[1721429498229,0.1,66899.0,66898.0,0.15146625]
[1721429498230,0.3461,66899.0,66898.0,0.15146625]
[1721429498424,0.3461,66899.0,66898.0,0.039]
[1721429498623,0.480631,66899.0,66898.0,0.039]
[1721429499105,0.749693,66899.0,66898.0,0.039]
[1721429499512,1.018755,66899.0,66898.0,0.026]
[1721429499714,1.018755,66899.0,66898.0,0.027]
[1721429500317,0.2461,66892.0,66891.0,0.134545]
[1721429500542,0.2461,66892.0,66891.0,0.654545]
[1721429500728,0.2461,66892.0,66891.0,0.52]
[1721429500874,0.2461,66892.0,66891.0,0.654547]
[1721429502285,0.2461,66892.0,66891.0,0.52]
[1721429502507,0.2461,66891.0,66890.0,0.134548]
[1721429502725,0.2461,66891.0,66890.0,0.654548]
[1721429503385,0.2461,66891.0,66890.0,0.52]
[1721429503586,0.2461,66891.0,66890.0,0.654549]
[1721429503724,0.2461,66891.0,66890.0,0.656549]
[1721429504989,0.2461,66891.0,66890.0,0.522]
[1721429505944,0.2461,66891.0,66890.0,0.6145657]
[1721429506144,0.1961,66891.0,66890.0,0.6145657]
[1721429506340,0.1961,66891.0,66890.0,0.7491147]
[1721429506657,0.1961,66891.0,66890.0,1.0182127]
[1721429507059,0.2461,66891.0,66890.0,0.7491147]
[1721429507260,0.2461,66891.0,66890.0,0.656549]
[1721429510613,0.1961,66891.0,66890.0,0.656549]
[1721429511073,0.2461,66891.0,66890.0,0.656549]
[1721429512031,0.2461,66891.0,66890.0,0.925647]
[1721429514467,0.1961,66891.0,66890.0,0.925647]
[1721429514674,0.2461,66891.0,66890.0,0.925647]
[1721429514873,0.2461,66891.0,66890.0,1.0451224]
[1721429517593,0.1961,66891.0,66890.0,1.0451224]
[1721429517793,0.2461,66891.0,66890.0,0.925647]
[1721429518634,0.1961,66891.0,66890.0,0.925647]
[1721429519037,0.2461,66891.0,66890.0,0.925647]
[1721429519445,0.1961,66891.0,66890.0,0.925647]
[1721429519643,0.2461,66891.0,66890.0,1.0451224]
[1721429520431,0.1961,66891.0,66890.0,1.3142204]
[1721429521932,0.2461,66891.0,66890.0,1.0451224]
[1721429522788,0.2461,66891.0,66890.0,1.3142204]
[1721429523756,0.1961,66891.0,66890.0,1.3142204]
[1721429525481,0.3312,66891.0,66890.0,1.0451224]
[1721429525707,0.3312,66891.0,66890.0,0.925647]
[1721429526362,0.3312,66891.0,66890.0,1.03733463]
[1721429529786,0.3312,66891.0,66890.0,0.76823663]
[1721429530791,0.3312,66891.0,66890.0,0.63368763]
[1721429531059,0.2812,66891.0,66890.0,0.63368763]
[1721429531172,0.3312,66891.0,66890.0,0.63368763]
[1721429531413,0.734841,66891.0,66890.0,0.522]
[1721429532343,0.734841,66891.0,66890.0,0.002]
[1721429532556,1.373029,66891.0,66890.0,0.002]
[1721429533393,1.42907278,66891.0,66890.0,0.002]
[1721429533598,0.453677,66885.0,66884.0,0.000924]
[1721429533771,0.538777,66885.0,66884.0,0.000924]
[1721429534940,0.538777,66885.0,66884.0,0.005924]
[1721429535910,0.538777,66885.0,66884.0,0.008924]
[1721429536311,1.004195,66885.0,66884.0,0.008924]
[1721429536954,1.06022173,66885.0,66884.0,0.008924]
[1721429537139,1.004195,66885.0,66884.0,0.008924]
[1721429537315,1.396313,66885.0,66884.0,0.008924]
[1721429537537,1.49681495,66885.0,66884.0,0.008924]
[1721429537787,1.45236857,66885.0,66884.0,0.008924]
[1721429538162,1.45236857,66885.0,66884.0,0.003924]
[1721429538500,1.45336857,66885.0,66884.0,0.004924]
[1721429538706,1.45336857,66885.0,66884.0,0.001924]
[1721429539108,1.45336857,66885.0,66884.0,0.002924]
[1721429539539,1.397313,66885.0,66884.0,0.002924]
[1721429540074,1.312213,66885.0,66884.0,0.002924]
[1721429543381,1.581331,66885.0,66884.0,0.002924]
[1721429543595,1.64800158,66885.0,66884.0,0.002924]
[1721429543800,1.581331,66885.0,66884.0,0.002924]
[1721429544962,1.020095,66885.0,66884.0,0.002924]
[1721429545098,1.06454775,66885.0,66884.0,0.002924]
[1721429545523,1.33366575,66885.0,66884.0,0.002924]
[1721429545947,1.33366139,66885.0,66884.0,0.002924]
[1721429546647,1.289213,66885.0,66884.0,0.002924]
[1721429547867,1.349115,66885.0,66884.0,0.002924]
[1721429549120,1.079997,66885.0,66884.0,0.002924]
[1721429549329,1.013997,66885.0,66884.0,0.002924]
[1721429549539,0.933697,66885.0,66884.0,0.002924]
[1721429550972,0.05,66878.0,66876.0,0.133425]
[1721429551217,0.05,66878.0,66876.0,0.633425]
[1721429551393,0.05,66878.0,66877.0,0.00329593]
[1721429551592,0.05,66878.0,66877.0,0.46329593]
[1721429552802,0.1,66878.0,66877.0,0.46329593]
[1721429553828,0.05,66878.0,66877.0,0.46329593]
[1721429554831,0.051,66878.0,66877.0,0.46329593]
[1721429555217,0.05,66878.0,66877.0,0.59787093]
[1721429555422,0.05,66878.0,66877.0,0.71800992]
[1721429555628,0.051,66878.0,66877.0,0.59787093]
[1721429556612,0.101,66878.0,66877.0,0.59787093]
[1721429557083,0.101,66878.0,66877.0,0.59287093]
[1721429559576,0.051,66878.0,66877.0,0.59287093]
[1721429560237,0.101,66878.0,66877.0,0.59287093]
[1721429560630,0.051,66878.0,66877.0,0.59287093]
[1721429560836,0.101,66878.0,66877.0,0.59287093]
[1721429561455,0.101,66878.0,66877.0,0.71701709]
[1721429561898,0.051,66878.0,66877.0,0.71701709]
[1721429562255,0.101,66878.0,66877.0,0.59287093]
[1721429562458,0.101,66878.0,66877.0,0.7170173]
[1721429563590,0.051,66878.0,66877.0,0.7170173]
[1721429563789,0.101,66878.0,66877.0,0.7170173]
[1721429565544,0.101,66878.0,66877.0,0.59287093]
[1721429565714,0.101,66878.0,66877.0,0.71701722]
[1721429566542,0.101,66878.0,66877.0,0.58244222]
[1721429566963,0.101,66878.0,66877.0,0.45829593]
[1721429566964,0.565119,66878.0,66877.0,0.45829593]
[1721429569982,0.834265,66878.0,66877.0,0.45829593]
[1721429576026,0.911465,66878.0,66877.0,0.45829593]
[1721429578362,0.97825831,66878.0,66877.0,0.45829593]
[1721429578571,0.97829317,66878.0,66877.0,0.45829593]
[1721429579390,0.70914717,66878.0,66877.0,0.45829593]
[1721429579795,0.64874717,66878.0,66877.0,0.45829593]
[1721429580013,0.91789317,66878.0,66877.0,0.45829593]
[1721429581033,0.851065,66878.0,66877.0,0.45829593]
[1721429581239,0.91790868,66878.0,66877.0,0.45829593]
[1721429581419,0.851065,66878.0,66877.0,0.45829593]
[1721429583235,0.911465,66878.0,66877.0,0.45829593]
[1721429585158,0.910475,66877.0,66876.0,0.000924]
[1721429585364,1.07465501,66877.0,66876.0,0.000924]
[1721429585528,1.34380501,66877.0,66876.0,0.000924]
[1721429586117,1.44380501,66877.0,66876.0,0.000924]
[1721429587798,1.44380501,66877.0,66876.0,0.001924]
[1721429588506,1.44680501,66877.0,66876.0,0.002924]
[1721429591356,1.55811231,66877.0,66876.0,0.002924]
[1721429592329,1.44680501,66877.0,66876.0,0.002924]
[1721429597182,1.44680501,66877.0,66862.0,0.000924]
[1721429597183,0.942224,66863.0,66862.0,0.000924]
[1721429597422,0.773017,66863.0,66862.0,0.000924]
[1721429598145,1.042224,66863.0,66862.0,0.000924]